[Event "Titled Tuesday Blitz November 15 Early 2022"]
[White "Taboas Rodriguez, Daniel"]
[Black "Rosenberg, Evan S"]
[WhiteFideId "2208466"]
[BlackFideId "2019299"]
[WhiteElo "2329"]
[BlackElo "2394"]
[Result "1-0"]
[Round "08"]
[TimeControl "180+1"]
[Date "2022.11.16"]
[WhiteClock "0:00:06"]
[BlackClock "0:00:01"]

1. d4 {[%clk 0:02:59]}  d5 {[%clk 0:02:59]} 2. c4 {[%clk 0:02:59]}  e6 {[%clk 0:02:59]} 3. Nc3 {[%clk 0:02:59]}  c5 {[%clk 0:02:59]} 4. e3 {[%clk 0:02:56]}  Nf6 {[%clk 0:02:53]} 5. Nf3 {[%clk 0:02:51]}  a6 {[%clk 0:02:53]} 6. a3 {[%clk 0:02:48]}  cxd4 {[%clk 0:02:50]} 7. exd4 {[%clk 0:02:47]}  Be7 {[%clk 0:02:43]} 8. c5 {[%clk 0:02:44]}  O-O {[%clk 0:02:42]} 9. Bf4 {[%clk 0:02:38]}  b6 {[%clk 0:02:34]} 10. b4 {[%clk 0:02:36]}  a5 {[%clk 0:02:15]} 11. Na4 {[%clk 0:02:25]}  axb4 {[%clk 0:02:01]} 12. Nxb6 {[%clk 0:02:25]}  Rxa3 {[%clk 0:01:56]} 13. Bxb8 {[%clk 0:02:18]}  Nd7 {[%clk 0:01:06]} 14. Ba7 {[%clk 0:01:59]}  Nxc5 {[%clk 0:00:50]} 15. dxc5 {[%clk 0:01:57]}  Bxc5 {[%clk 0:00:50]} 16. Nxc8 {[%clk 0:01:55]}  Qa5 {[%clk 0:00:35]} 17. Rc1 {[%clk 0:01:11]}  Rxc8 {[%clk 0:00:22]} 18. Bxc5 {[%clk 0:01:09]}  Rxc5 {[%clk 0:00:22]} 19. Rxc5 {[%clk 0:01:05]}  Qxc5 {[%clk 0:00:23]} 20. Bd3 {[%clk 0:00:53]}  Qc3+ {[%clk 0:00:23]} 21. Ke2 {[%clk 0:00:53]}  Ra2+ {[%clk 0:00:16]} 22. Nd2 {[%clk 0:00:50]}  g6 {[%clk 0:00:11]} 23. Bb1 {[%clk 0:00:34]}  Rb2 {[%clk 0:00:09]} 24. Qc1 {[%clk 0:00:26]}  Qe5+ {[%clk 0:00:09]} 25. Kd1 {[%clk 0:00:24]}  Qd4 {[%clk 0:00:06]} 26. Re1 {[%clk 0:00:21]}  h5 {[%clk 0:00:05]} 27. Re3 {[%clk 0:00:20]}  Kg7 {[%clk 0:00:04]} 28. Rd3 {[%clk 0:00:19]}  Qe5 {[%clk 0:00:03]} 29. Re3 {[%clk 0:00:16]}  Qd4 {[%clk 0:00:03]} 30. Ke1 {[%clk 0:00:13]}  h4 {[%clk 0:00:02]} 31. h3 {[%clk 0:00:12]}  g5 {[%clk 0:00:02]} 32. Nf3 {[%clk 0:00:10]}  Qf6 {[%clk 0:00:01]} 33. Bd3 {[%clk 0:00:06]} 1-0


[Site "https://www.chess.com"]

[Event "Titled Tuesday Blitz November 15 Early 2022"]
[White "Ter-Sahakyan, Samvel"]
[Black "Postnikov, Daniil"]
[WhiteFideId "13302531"]
[BlackFideId "4166329"]
[WhiteElo "2584"]
[BlackElo "2261"]
[Result "1-0"]
[Round "08"]
[TimeControl "180+1"]
[Date "2022.11.15"]
[WhiteClock "0:00:24"]
[BlackClock "0:00:08"]

1. d4 {[%clk 0:02:59]}  Nf6 {[%clk 0:02:59]} 2. c4 {[%clk 0:03:00]}  c5 {[%clk 0:02:59]} 3. d5 {[%clk 0:03:00]}  b5 {[%clk 0:02:59]} 4. cxb5 {[%clk 0:02:58]}  a6 {[%clk 0:02:59]} 5. e3 {[%clk 0:02:58]}  axb5 {[%clk 0:02:58]} 6. Bxb5 {[%clk 0:02:58]}  Qa5+ {[%clk 0:02:58]} 7. Nc3 {[%clk 0:02:58]}  Bb7 {[%clk 0:02:59]} 8. e4 {[%clk 0:02:51]}  Nxe4 {[%clk 0:02:51]} 9. Ne2 {[%clk 0:02:51]}  Nd6 {[%clk 0:02:27]} 10. Ba4 {[%clk 0:02:50]}  g6 {[%clk 0:02:22]} 11. O-O {[%clk 0:02:48]}  Bg7 {[%clk 0:02:21]} 12. Bg5 {[%clk 0:02:38]}  h6 {[%clk 0:02:18]} 13. Bf4 {[%clk 0:02:32]}  Nf5 {[%clk 0:02:17]} 14. Bc2 {[%clk 0:02:23]}  Nd4 {[%clk 0:02:05]} 15. Be4 {[%clk 0:02:04]}  d6 {[%clk 0:01:57]} 16. Rb1 {[%clk 0:01:38]}  Ba6 {[%clk 0:01:46]} 17. Re1 {[%clk 0:01:28]}  Nxe2+ {[%clk 0:01:37]} 18. Nxe2 {[%clk 0:01:29]}  Qxa2 {[%clk 0:01:37]} 19. Nc3 {[%clk 0:01:27]}  Qa5 {[%clk 0:01:33]} 20. Bc2 {[%clk 0:01:07]}  O-O {[%clk 0:01:16]} 21. Rxe7 {[%clk 0:01:06]}  Qd8 {[%clk 0:01:09]} 22. Qe1 {[%clk 0:00:49]}  Bc4 {[%clk 0:00:46]} 23. h4 {[%clk 0:00:49]}  Na6 {[%clk 0:00:43]} 24. h5 {[%clk 0:00:49]}  Nb4 {[%clk 0:00:42]} 25. Bxg6 {[%clk 0:00:48]}  fxg6 {[%clk 0:00:40]} 26. Qe6+ {[%clk 0:00:48]}  Kh8 {[%clk 0:00:40]} 27. Rxg7 {[%clk 0:00:37]}  Kxg7 {[%clk 0:00:09]} 28. Qxg6+ {[%clk 0:00:37]}  Kh8 {[%clk 0:00:09]} 29. Qxh6+ {[%clk 0:00:38]}  Kg8 {[%clk 0:00:10]} 30. Qg6+ {[%clk 0:00:38]}  Kh8 {[%clk 0:00:10]} 31. Bxd6 {[%clk 0:00:38]}  Rf6 {[%clk 0:00:08]} 32. Be5 {[%clk 0:00:38]}  Ra6 {[%clk 0:00:08]} 33. Re1 {[%clk 0:00:30]}  Nd3 {[%clk 0:00:07]} 34. Bxf6+ {[%clk 0:00:28]}  Rxf6 {[%clk 0:00:07]} 35. Re8+ {[%clk 0:00:28]}  Rf8 {[%clk 0:00:08]} 36. Qh6+ {[%clk 0:00:24]} 1-0


[Site "https://www.chess.com"]

[Event "Titled Tuesday Blitz November 15 Early 2022"]
[White "Terry, Renato"]
[Black "Jarmula, Lukasz"]
[WhiteFideId "3803457"]
[BlackFideId "1160664"]
[WhiteElo "2577"]
[BlackElo "2357"]
[Result "1-0"]
[Round "08"]
[TimeControl "180+1"]
[Date "2022.11.15"]
[WhiteClock "0:02:45"]
[BlackClock "0:01:54"]

1. e4 {[%clk 0:02:58]}  c5 {[%clk 0:02:59]} 2. Nf3 {[%clk 0:02:58]}  d6 {[%clk 0:02:59]} 3. Bb5+ {[%clk 0:02:58]}  Bd7 {[%clk 0:02:58]} 4. Bxd7+ {[%clk 0:02:59]}  Qxd7 {[%clk 0:02:59]} 5. O-O {[%clk 0:03:00]}  Nf6 {[%clk 0:02:55]} 6. e5 {[%clk 0:03:00]}  dxe5 {[%clk 0:02:54]} 7. Nxe5 {[%clk 0:03:01]}  Qc8 {[%clk 0:02:52]} 8. Re1 {[%clk 0:03:00]}  e6 {[%clk 0:02:51]} 9. Nc3 {[%clk 0:03:00]}  Be7 {[%clk 0:02:49]} 10. Qf3 {[%clk 0:03:00]}  O-O {[%clk 0:02:48]} 11. d3 {[%clk 0:03:00]}  Nbd7 {[%clk 0:02:46]} 12. Nc4 {[%clk 0:03:00]}  Re8 {[%clk 0:02:40]} 13. Bf4 {[%clk 0:02:58]}  Bf8 {[%clk 0:02:32]} 14. Nb5 {[%clk 0:02:57]}  Nd5 {[%clk 0:02:28]} 15. Nbd6 {[%clk 0:02:57]}  Qc7 {[%clk 0:02:15]} 16. Nxe8 {[%clk 0:02:49]}  Qxf4 {[%clk 0:02:13]} 17. Qxf4 {[%clk 0:02:47]}  Nxf4 {[%clk 0:02:13]} 18. Ned6 {[%clk 0:02:48]}  a6 {[%clk 0:01:57]} 19. Nxb7 {[%clk 0:02:45]}  Rb8 {[%clk 0:01:54]} 20. Nba5 {[%clk 0:02:45]} 1-0


[Site "https://www.chess.com"]

[Event "Titled Tuesday Blitz November 15 Early 2022"]
[White "Todorovic, Bojan"]
[Black "Shuvalov, Evgenij"]
[WhiteFideId "917087"]
[BlackFideId "4187237"]
[WhiteElo "2266"]
[BlackElo "2049"]
[Result "1-0"]
[Round "08"]
[TimeControl "180+1"]
[Date "2022.11.16"]
[WhiteClock "0:00:10"]
[BlackClock "0:00:01"]

1. d4 {[%clk 0:02:59]}  Nf6 {[%clk 0:02:57]} 2. c4 {[%clk 0:02:59]}  g6 {[%clk 0:02:57]} 3. Nc3 {[%clk 0:02:58]}  d5 {[%clk 0:02:57]} 4. Nf3 {[%clk 0:02:57]}  Bg7 {[%clk 0:02:56]} 5. Bg5 {[%clk 0:02:55]}  Ne4 {[%clk 0:02:52]} 6. Bh4 {[%clk 0:02:55]}  Nxc3 {[%clk 0:02:51]} 7. bxc3 {[%clk 0:02:55]}  c5 {[%clk 0:02:51]} 8. e3 {[%clk 0:02:55]}  O-O {[%clk 0:02:50]} 9. cxd5 {[%clk 0:02:53]}  cxd4 {[%clk 0:02:43]} 10. cxd4 {[%clk 0:02:52]}  Qxd5 {[%clk 0:02:40]} 11. Bxe7 {[%clk 0:02:40]}  Re8 {[%clk 0:02:40]} 12. Rc1 {[%clk 0:02:29]}  Nc6 {[%clk 0:02:37]} 13. Bc5 {[%clk 0:02:21]}  b6 {[%clk 0:01:54]} 14. Bc4 {[%clk 0:02:20]}  Qd7 {[%clk 0:01:55]} 15. Ba3 {[%clk 0:02:15]}  Na5 {[%clk 0:01:12]} 16. Be2 {[%clk 0:02:09]}  Bb7 {[%clk 0:01:10]} 17. O-O {[%clk 0:02:08]}  Bd5 {[%clk 0:01:09]} 18. Qd2 {[%clk 0:01:21]}  Qa4 {[%clk 0:00:58]} 19. Rc3 {[%clk 0:01:08]}  Rac8 {[%clk 0:00:51]} 20. Rfc1 {[%clk 0:01:05]}  Rxc3 {[%clk 0:00:50]} 21. Rxc3 {[%clk 0:01:02]}  b5 {[%clk 0:00:18]} 22. Bd1 {[%clk 0:00:46]}  Nc4 {[%clk 0:00:10]} 23. Bxa4 {[%clk 0:00:44]}  Nxd2 {[%clk 0:00:10]} 24. Bxb5 {[%clk 0:00:33]}  Nxf3+ {[%clk 0:00:10]} 25. gxf3 {[%clk 0:00:33]}  Rb8 {[%clk 0:00:10]} 26. Bc6 {[%clk 0:00:29]}  Bxc6 {[%clk 0:00:09]} 27. Rxc6 {[%clk 0:00:28]}  Bf8 {[%clk 0:00:09]} 28. Bxf8 {[%clk 0:00:26]}  Kxf8 {[%clk 0:00:09]} 29. Rc7 {[%clk 0:00:25]}  a5 {[%clk 0:00:10]} 30. Ra7 {[%clk 0:00:24]}  Rb5 {[%clk 0:00:10]} 31. f4 {[%clk 0:00:22]}  h5 {[%clk 0:00:09]} 32. h4 {[%clk 0:00:21]}  Ke8 {[%clk 0:00:09]} 33. Kg2 {[%clk 0:00:21]}  Kf8 {[%clk 0:00:07]} 34. Kf3 {[%clk 0:00:21]}  f5 {[%clk 0:00:07]} 35. a4 {[%clk 0:00:14]}  Rd5 {[%clk 0:00:06]} 36. Ke2 {[%clk 0:00:13]}  Kg8 {[%clk 0:00:03]} 37. Kd3 {[%clk 0:00:13]}  Rd8 {[%clk 0:00:01]} 38. Rxa5 {[%clk 0:00:13]}  Kf7 {[%clk 0:00:01]} 39. Rb5 {[%clk 0:00:10]} 1-0


[Site "https://www.chess.com"]

[Event "Titled Tuesday Blitz November 15 Early 2022"]
[White "Tomb, Maroun"]
[Black "Kobo, Ori"]
[WhiteFideId "5300398"]
[BlackFideId "2812320"]
[WhiteElo "2550"]
[BlackElo "2447"]
[Result "0-1"]
[Round "08"]
[TimeControl "180+1"]
[Date "2022.11.16"]
[WhiteClock "0:00:26"]
[BlackClock "0:01:43"]

1. e4 {[%clk 0:02:57]}  c5 {[%clk 0:03:00]} 2. Ne2 {[%clk 0:02:56]}  Nc6 {[%clk 0:02:57]} 3. Nbc3 {[%clk 0:02:56]}  e6 {[%clk 0:02:57]} 4. d4 {[%clk 0:02:56]}  cxd4 {[%clk 0:02:58]} 5. Nxd4 {[%clk 0:02:57]}  Qc7 {[%clk 0:02:58]} 6. g3 {[%clk 0:02:57]}  h5 {[%clk 0:02:58]} 7. h3 {[%clk 0:02:56]}  h4 {[%clk 0:02:56]} 8. g4 {[%clk 0:02:57]}  a6 {[%clk 0:02:55]} 9. Bg2 {[%clk 0:02:56]}  Nge7 {[%clk 0:02:53]} 10. Nde2 {[%clk 0:02:49]}  Ng6 {[%clk 0:02:47]} 11. f4 {[%clk 0:02:45]}  Bc5 {[%clk 0:02:45]} 12. e5 {[%clk 0:02:38]}  d5 {[%clk 0:02:33]} 13. a3 {[%clk 0:02:18]}  Ba7 {[%clk 0:02:22]} 14. Qd3 {[%clk 0:02:13]}  Bd7 {[%clk 0:02:15]} 15. Be3 {[%clk 0:02:07]}  d4 {[%clk 0:02:07]} 16. Nxd4 {[%clk 0:01:02]}  Nxd4 {[%clk 0:01:58]} 17. Bxd4 {[%clk 0:01:01]}  Nxf4 {[%clk 0:01:56]} 18. Qe4 {[%clk 0:01:00]}  Nxg2+ {[%clk 0:01:51]} 19. Kf2 {[%clk 0:01:00]}  Bc6 {[%clk 0:01:50]} 20. Qd3 {[%clk 0:00:26]}  O-O-O {[%clk 0:01:43]} 0-1


[Site "https://www.chess.com"]

[Event "Titled Tuesday Blitz November 15 Early 2022"]
[White "Tristan, Leonardo"]
[Black "Nguyen, Thai Dai Van"]
[WhiteFideId "113816"]
[BlackFideId "358878"]
[WhiteElo "2461"]
[BlackElo "2534"]
[Result "1-0"]
[Round "08"]
[TimeControl "180+1"]
[Date "2022.11.15"]
[WhiteClock "0:00:09"]
[BlackClock "0:00:36"]

1. d4 {[%clk 0:03:00]}  Nf6 {[%clk 0:02:59]} 2. Nf3 {[%clk 0:02:59]}  d5 {[%clk 0:02:59]} 3. Bf4 {[%clk 0:03:00]}  c5 {[%clk 0:02:59]} 4. e3 {[%clk 0:03:00]}  Nc6 {[%clk 0:03:00]} 5. Nbd2 {[%clk 0:03:00]}  cxd4 {[%clk 0:03:00]} 6. exd4 {[%clk 0:03:01]}  a6 {[%clk 0:03:01]} 7. c3 {[%clk 0:02:57]}  Bf5 {[%clk 0:03:00]} 8. Nh4 {[%clk 0:02:53]}  Be4 {[%clk 0:02:57]} 9. Nhf3 {[%clk 0:02:53]}  Bg6 {[%clk 0:02:53]} 10. Nh4 {[%clk 0:02:51]}  Bh5 {[%clk 0:02:47]} 11. Nhf3 {[%clk 0:02:51]}  e6 {[%clk 0:02:48]} 12. Bd3 {[%clk 0:02:51]}  Bd6 {[%clk 0:02:45]} 13. Bg5 {[%clk 0:02:47]}  Qc7 {[%clk 0:02:35]} 14. Qb1 {[%clk 0:02:11]}  Bg6 {[%clk 0:02:22]} 15. O-O {[%clk 0:02:07]}  O-O-O {[%clk 0:02:22]} 16. Re1 {[%clk 0:02:06]}  Kb8 {[%clk 0:02:22]} 17. Bh4 {[%clk 0:01:51]}  Rde8 {[%clk 0:02:19]} 18. Bg3 {[%clk 0:01:51]}  Bxg3 {[%clk 0:02:05]} 19. hxg3 {[%clk 0:01:51]}  e5 {[%clk 0:02:05]} 20. dxe5 {[%clk 0:01:51]}  Nxe5 {[%clk 0:02:06]} 21. Nxe5 {[%clk 0:01:49]}  Rxe5 {[%clk 0:02:07]} 22. Rxe5 {[%clk 0:01:48]}  Qxe5 {[%clk 0:02:08]} 23. Nf3 {[%clk 0:01:48]}  Qh5 {[%clk 0:02:09]} 24. Qd1 {[%clk 0:01:42]}  Be4 {[%clk 0:02:05]} 25. Nh2 {[%clk 0:01:20]}  Qf5 {[%clk 0:02:00]} 26. Bxe4 {[%clk 0:01:18]}  dxe4 {[%clk 0:01:56]} 27. Qd2 {[%clk 0:01:14]}  h5 {[%clk 0:01:54]} 28. Rd1 {[%clk 0:01:09]}  Qe5 {[%clk 0:01:50]} 29. Qf4 {[%clk 0:00:57]}  Qxf4 {[%clk 0:01:50]} 30. gxf4 {[%clk 0:00:58]}  h4 {[%clk 0:01:46]} 31. Nf1 {[%clk 0:00:56]}  Nh5 {[%clk 0:01:39]} 32. Rd7 {[%clk 0:00:50]}  f5 {[%clk 0:01:32]} 33. Ne3 {[%clk 0:00:46]}  g6 {[%clk 0:01:30]} 34. Nd5 {[%clk 0:00:47]}  Rg8 {[%clk 0:01:21]} 35. Rf7 {[%clk 0:00:43]}  Rd8 {[%clk 0:01:19]} 36. c4 {[%clk 0:00:43]}  b5 {[%clk 0:01:18]} 37. b3 {[%clk 0:00:40]}  bxc4 {[%clk 0:01:18]} 38. bxc4 {[%clk 0:00:41]}  Rc8 {[%clk 0:01:19]} 39. Nb6 {[%clk 0:00:42]}  Rc6 {[%clk 0:01:17]} 40. c5 {[%clk 0:00:42]}  Nxf4 {[%clk 0:01:15]} 41. Rf8+ {[%clk 0:00:18]}  Kb7 {[%clk 0:01:14]} 42. Rf7+ {[%clk 0:00:18]}  Rc7 {[%clk 0:01:15]} 43. Nd7 {[%clk 0:00:13]}  Nd3 {[%clk 0:01:08]} 44. Rg7 {[%clk 0:00:07]}  a5 {[%clk 0:00:58]} 45. Rxg6 {[%clk 0:00:07]}  Nxc5 {[%clk 0:00:55]} 46. Ne5 {[%clk 0:00:07]}  Re7 {[%clk 0:00:41]} 47. Nc4 {[%clk 0:00:07]}  f4 {[%clk 0:00:42]} 48. Nxa5+ {[%clk 0:00:06]}  Ka8 {[%clk 0:00:37]} 49. Rg8+ {[%clk 0:00:07]}  Ka7 {[%clk 0:00:37]} 50. Nc6+ {[%clk 0:00:07]}  Kb6 {[%clk 0:00:38]} 51. Nxe7 {[%clk 0:00:08]}  Kb5 {[%clk 0:00:38]} 52. Rf8 {[%clk 0:00:08]}  e3 {[%clk 0:00:37]} 53. fxe3 {[%clk 0:00:08]}  fxe3 {[%clk 0:00:38]} 54. Kf1 {[%clk 0:00:09]}  Ne6 {[%clk 0:00:38]} 55. Rf5+ {[%clk 0:00:09]}  Kc4 {[%clk 0:00:38]} 56. Re5 {[%clk 0:00:09]}  Nf4 {[%clk 0:00:38]} 57. Rxe3 {[%clk 0:00:09]}  Kd4 {[%clk 0:00:37]} 58. Re1 {[%clk 0:00:09]}  h3 {[%clk 0:00:36]} 59. gxh3 {[%clk 0:00:09]} 1-0


[Site "https://www.chess.com"]

[Event "Titled Tuesday Blitz November 15 Early 2022"]
[White "Tsaruk, Maksim"]
[Black "Besedes, Danilo"]
[WhiteFideId "13511173"]
[BlackFideId "946796"]
[WhiteElo "2300"]
[BlackElo "2352"]
[Result "1-0"]
[Round "08"]
[TimeControl "180+1"]
[Date "2022.11.16"]
[WhiteClock "0:00:18"]
[BlackClock "0:00:27"]

1. d4 {[%clk 0:02:54]}  d6 {[%clk 0:02:59]} 2. Nf3 {[%clk 0:02:55]}  Nc6 {[%clk 0:02:57]} 3. e4 {[%clk 0:02:52]}  e5 {[%clk 0:02:56]} 4. dxe5 {[%clk 0:02:49]}  dxe5 {[%clk 0:02:56]} 5. Qxd8+ {[%clk 0:02:50]}  Kxd8 {[%clk 0:02:57]} 6. Bc4 {[%clk 0:02:46]}  f6 {[%clk 0:02:57]} 7. Nc3 {[%clk 0:02:45]}  a6 {[%clk 0:02:56]} 8. Be3 {[%clk 0:02:43]}  Bd7 {[%clk 0:02:50]} 9. O-O-O {[%clk 0:02:42]}  Kc8 {[%clk 0:02:51]} 10. Nd2 {[%clk 0:02:14]}  Bd6 {[%clk 0:02:41]} 11. Bxg8 {[%clk 0:02:09]}  Rxg8 {[%clk 0:02:41]} 12. Nc4 {[%clk 0:02:10]}  Bf8 {[%clk 0:02:36]} 13. Nd5 {[%clk 0:02:09]}  Be6 {[%clk 0:02:18]} 14. f4 {[%clk 0:02:09]}  b5 {[%clk 0:02:11]} 15. Nd2 {[%clk 0:01:54]}  Kb7 {[%clk 0:02:11]} 16. Nf3 {[%clk 0:01:48]}  Bd6 {[%clk 0:02:09]} 17. f5 {[%clk 0:01:23]}  Bf7 {[%clk 0:02:09]} 18. g4 {[%clk 0:01:23]}  Rad8 {[%clk 0:01:54]} 19. c3 {[%clk 0:01:22]}  Ne7 {[%clk 0:01:53]} 20. Nxe7 {[%clk 0:01:14]}  Bxe7 {[%clk 0:01:54]} 21. Kc2 {[%clk 0:01:14]}  g6 {[%clk 0:01:54]} 22. Rxd8 {[%clk 0:01:13]}  Rxd8 {[%clk 0:01:52]} 23. b3 {[%clk 0:01:13]}  gxf5 {[%clk 0:01:50]} 24. gxf5 {[%clk 0:01:13]}  Rg8 {[%clk 0:01:50]} 25. Rg1 {[%clk 0:01:13]}  Rxg1 {[%clk 0:01:50]} 26. Bxg1 {[%clk 0:01:12]}  Bh5 {[%clk 0:01:48]} 27. Nd2 {[%clk 0:01:12]}  c5 {[%clk 0:01:48]} 28. Kd3 {[%clk 0:01:11]}  Kc6 {[%clk 0:01:47]} 29. c4 {[%clk 0:01:09]}  Bf8 {[%clk 0:01:45]} 30. Be3 {[%clk 0:01:08]}  Kd6 {[%clk 0:01:41]} 31. cxb5 {[%clk 0:01:05]}  axb5 {[%clk 0:01:41]} 32. a4 {[%clk 0:01:06]}  Kc6 {[%clk 0:01:41]} 33. Kc3 {[%clk 0:00:37]}  Bd1 {[%clk 0:01:29]} 34. Bf2 {[%clk 0:00:26]}  bxa4 {[%clk 0:01:25]} 35. bxa4 {[%clk 0:00:26]}  Bxa4 {[%clk 0:01:26]} 36. Bh4 {[%clk 0:00:26]}  Bg7 {[%clk 0:01:13]} 37. Nc4 {[%clk 0:00:27]}  Bd1 {[%clk 0:01:09]} 38. Ne3 {[%clk 0:00:28]}  Bf3 {[%clk 0:01:07]} 39. Kd3 {[%clk 0:00:28]}  Kb5 {[%clk 0:01:02]} 40. Nd5 {[%clk 0:00:28]}  c4+ {[%clk 0:00:55]} 41. Ke3 {[%clk 0:00:29]}  Bg2 {[%clk 0:00:53]} 42. Bxf6 {[%clk 0:00:29]}  Bh6+ {[%clk 0:00:53]} 43. Kf2 {[%clk 0:00:30]}  Bxe4 {[%clk 0:00:53]} 44. Nc3+ {[%clk 0:00:31]}  Kc5 {[%clk 0:00:51]} 45. Nxe4+ {[%clk 0:00:32]}  Kd4 {[%clk 0:00:51]} 46. Ng3 {[%clk 0:00:23]}  c3 {[%clk 0:00:46]} 47. Be7 {[%clk 0:00:24]}  c2 {[%clk 0:00:44]} 48. Ne2+ {[%clk 0:00:16]}  Ke4 {[%clk 0:00:36]} 49. f6 {[%clk 0:00:16]}  c1=Q {[%clk 0:00:31]} 50. Nxc1 {[%clk 0:00:14]}  Bxc1 {[%clk 0:00:31]} 51. f7 {[%clk 0:00:15]}  Bh6 {[%clk 0:00:31]} 52. f8=Q {[%clk 0:00:16]}  Bxf8 {[%clk 0:00:31]} 53. Bxf8 {[%clk 0:00:17]}  Kf5 {[%clk 0:00:32]} 54. Bd6 {[%clk 0:00:17]}  Ke4 {[%clk 0:00:31]} 55. Bb8 {[%clk 0:00:17]}  Kf4 {[%clk 0:00:31]} 56. Kg2 {[%clk 0:00:16]}  Ke4 {[%clk 0:00:30]} 57. Kg3 {[%clk 0:00:17]}  Kd4 {[%clk 0:00:28]} 58. Kg4 {[%clk 0:00:17]}  e4 {[%clk 0:00:27]} 59. Ba7+ {[%clk 0:00:17]}  Kd3 {[%clk 0:00:27]} 60. Kf4 {[%clk 0:00:18]} 1-0


[Site "https://www.chess.com"]

[Event "Titled Tuesday Blitz November 15 Early 2022"]
[White "Tuleyeva-Aketayeva, Dana"]
[Black "Osinovsky, Stepan"]
[WhiteFideId "13701932"]
[BlackFideId "4157354"]
[WhiteElo "2030"]
[BlackElo "2222"]
[Result "1-0"]
[Round "08"]
[TimeControl "180+1"]
[Date "2022.11.16"]
[WhiteClock "0:00:32"]
[BlackClock "0:00:33"]

1. Nf3 {[%clk 0:02:31]}  Nf6 {[%clk 0:02:58]} 2. g3 {[%clk 0:02:31]}  g6 {[%clk 0:02:59]} 3. Bg2 {[%clk 0:02:31]}  Bg7 {[%clk 0:03:00]} 4. O-O {[%clk 0:02:32]}  O-O {[%clk 0:03:00]} 5. d4 {[%clk 0:02:32]}  d6 {[%clk 0:03:01]} 6. c4 {[%clk 0:02:32]}  Nbd7 {[%clk 0:03:02]} 7. Nc3 {[%clk 0:02:33]}  e5 {[%clk 0:03:02]} 8. dxe5 {[%clk 0:02:33]}  Nxe5 {[%clk 0:02:56]} 9. Nxe5 {[%clk 0:02:32]}  dxe5 {[%clk 0:02:57]} 10. Bg5 {[%clk 0:02:32]}  h6 {[%clk 0:02:50]} 11. Qxd8 {[%clk 0:02:24]}  Rxd8 {[%clk 0:02:50]} 12. Bxf6 {[%clk 0:02:25]}  Bxf6 {[%clk 0:02:47]} 13. Nd5 {[%clk 0:02:24]}  Kg7 {[%clk 0:02:30]} 14. Nxc7 {[%clk 0:02:13]}  Rb8 {[%clk 0:02:30]} 15. Nb5 {[%clk 0:02:07]}  Be6 {[%clk 0:02:23]} 16. b3 {[%clk 0:01:52]}  e4 {[%clk 0:02:18]} 17. Rad1 {[%clk 0:01:50]}  a6 {[%clk 0:02:15]} 18. Nd6 {[%clk 0:01:43]}  e3 {[%clk 0:02:15]} 19. fxe3 {[%clk 0:01:33]}  Be7 {[%clk 0:01:53]} 20. Nxb7 {[%clk 0:01:29]}  Rxd1 {[%clk 0:01:38]} 21. Rxd1 {[%clk 0:01:28]}  Kf6 {[%clk 0:01:38]} 22. c5 {[%clk 0:01:23]}  Bc8 {[%clk 0:01:29]} 23. c6 {[%clk 0:01:21]}  Bxb7 {[%clk 0:01:22]} 24. cxb7 {[%clk 0:01:21]}  Bc5 {[%clk 0:01:16]} 25. Kf2 {[%clk 0:01:21]}  Ke6 {[%clk 0:01:07]} 26. Rd5 {[%clk 0:01:13]}  Bb6 {[%clk 0:01:05]} 27. Rd3 {[%clk 0:01:06]}  a5 {[%clk 0:01:01]} 28. Rc3 {[%clk 0:01:04]}  Kd7 {[%clk 0:00:52]} 29. Bh3+ {[%clk 0:00:50]}  Kd6 {[%clk 0:00:50]} 30. Bg2 {[%clk 0:00:43]}  Kd7 {[%clk 0:00:45]} 31. a3 {[%clk 0:00:41]}  Bc7 {[%clk 0:00:43]} 32. b4 {[%clk 0:00:36]}  axb4 {[%clk 0:00:42]} 33. axb4 {[%clk 0:00:36]}  f5 {[%clk 0:00:35]} 34. b5 {[%clk 0:00:33]}  Re8 {[%clk 0:00:33]} 35. Bc6+ {[%clk 0:00:32]} 1-0


[Site "https://www.chess.com"]

[Event "Titled Tuesday Blitz November 15 Early 2022"]
[White "Volkov, Maksim"]
[Black "Timofeev, Artyom"]
[WhiteFideId "54123070"]
[BlackFideId "4140419"]
[WhiteElo "2257"]
[BlackElo "2586"]
[Result "1/2-1/2"]
[Round "08"]
[TimeControl "180+1"]
[Date "2022.11.15"]
[WhiteClock "0:00:13"]
[BlackClock "0:00:14"]

1. d4 {[%clk 0:03:00]}  d5 {[%clk 0:02:57]} 2. c4 {[%clk 0:03:00]}  e6 {[%clk 0:02:57]} 3. Nf3 {[%clk 0:03:00]}  c6 {[%clk 0:02:56]} 4. g3 {[%clk 0:02:59]}  dxc4 {[%clk 0:02:56]} 5. Bg2 {[%clk 0:02:57]}  b5 {[%clk 0:02:56]} 6. Ne5 {[%clk 0:02:53]}  Bb7 {[%clk 0:02:56]} 7. O-O {[%clk 0:02:42]}  Qc8 {[%clk 0:02:50]} 8. b3 {[%clk 0:02:23]}  cxb3 {[%clk 0:02:50]} 9. Qxb3 {[%clk 0:02:24]}  Nd7 {[%clk 0:02:48]} 10. Nd3 {[%clk 0:02:07]}  Ngf6 {[%clk 0:02:42]} 11. Nc3 {[%clk 0:02:02]}  Be7 {[%clk 0:02:38]} 12. Ba3 {[%clk 0:01:59]}  Bxa3 {[%clk 0:02:15]} 13. Qxa3 {[%clk 0:01:59]}  a5 {[%clk 0:02:16]} 14. Ne4 {[%clk 0:01:21]}  Nxe4 {[%clk 0:02:15]} 15. Bxe4 {[%clk 0:01:22]}  b4 {[%clk 0:02:15]} 16. Qb2 {[%clk 0:01:18]}  O-O {[%clk 0:02:13]} 17. a3 {[%clk 0:01:16]}  bxa3 {[%clk 0:01:35]} 18. Rxa3 {[%clk 0:01:16]}  Qc7 {[%clk 0:01:29]} 19. Qc2 {[%clk 0:01:07]}  h6 {[%clk 0:01:18]} 20. Rfa1 {[%clk 0:01:05]}  Rfc8 {[%clk 0:01:12]} 21. Nc5 {[%clk 0:01:03]}  Nf6 {[%clk 0:00:35]} 22. Bf3 {[%clk 0:00:59]}  Nd5 {[%clk 0:00:35]} 23. Qd2 {[%clk 0:00:44]}  Nb4 {[%clk 0:00:32]} 24. Nb3 {[%clk 0:00:39]}  c5 {[%clk 0:00:30]} 25. Bxb7 {[%clk 0:00:35]}  Qxb7 {[%clk 0:00:30]} 26. Nxc5 {[%clk 0:00:33]}  Qb5 {[%clk 0:00:30]} 27. e3 {[%clk 0:00:29]}  e5 {[%clk 0:00:27]} 28. Nb3 {[%clk 0:00:26]}  exd4 {[%clk 0:00:21]} 29. Rxa5 {[%clk 0:00:19]}  Rxa5 {[%clk 0:00:20]} 30. Rxa5 {[%clk 0:00:19]}  dxe3 {[%clk 0:00:20]} 31. Qxe3 {[%clk 0:00:16]}  Qd7 {[%clk 0:00:18]} 32. Re5 {[%clk 0:00:15]}  Nd5 {[%clk 0:00:14]} 33. Qd4 {[%clk 0:00:15]}  Nf6 {[%clk 0:00:14]} 34. Qxd7 {[%clk 0:00:13]}  Nxd7 {[%clk 0:00:15]} 35. Re3 {[%clk 0:00:13]}  Nf6 {[%clk 0:00:15]} 36. Kg2 {[%clk 0:00:13]}  Nd5 {[%clk 0:00:14]} 1/2-1/2


[Site "https://www.chess.com"]